{"text_format":"3","workbook":"xlsx","n_sheets":5,"sheets":["Αναφορά πωλήσεων προϊόντων","Ιστορικά δεδομένα","Τιμοκατάλογος","Price Point Pivot","Sales Trend Pivot"],"not_rendered":{"charts":2,"defined_names":6,"pivot_tables":2},"read":"whole","date_system":"1900"}

{"sheet":"Αναφορά πωλήσεων προϊόντων","index":0,"n_rows":20,"n_cols":2,"rows_kept":20}
[null,"Αναφορά πωλήσεων προϊόντων"]
{"$rows_empty":18}
[null," Προϊόντα"]

{"sheet":"Ιστορικά δεδομένα","index":1,"n_rows":33,"n_cols":10,"rows_kept":33}
[null,"Ιστορικό τιμοκαταλόγου προϊόντων και πωλήσεων"]
[]
[null,"Κωδικός προϊόντος","Όνομα προϊόντος","Ημερομηνία τιμής","Τιμή μονάδας λιανικής","Τιμή μονάδας χονδρικής*","Πωληθείσες μονάδες (λιανική)","Πωληθείσες μονάδες (χονδρική)","Σύνολο πωλήσεων (αρ.)","Σύνολο πωλήσεων (€)"]
[null,5,{"$f":"IFERROR(IF(tblSales[[#This Row],[Κωδικός προϊόντος]]<>\"\",VLOOKUP(tblSales[Κωδικός προϊόντος],tblProducts[[Κωδικός προϊόντος]:[Όνομα]],2,FALSE),\"\"),\"Άγνωστος κωδικός προϊόντος\")","v":"Σορτσάκια"},"2012-01-01",20,{"v":20,"d":"20.00 €"},629,{"v":1254,"d":"1,254"},{"$f":"tblSales[[#This Row],[Πωληθείσες μονάδες (λιανική)]]+tblSales[[#This Row],[Πωληθείσες μονάδες (χονδρική)]]","v":{"v":1883,"d":"1,883"}},{"$f":"tblSales[[#This Row],[Πωληθείσες μονάδες (λιανική)]]*tblSales[[#This Row],[Τιμή μονάδας λιανικής]]+tblSales[[#This Row],[Πωληθείσες μονάδες (χονδρική)]]*tblSales[[#This Row],[Τιμή μονάδας χονδρικής*]]","v":{"v":37660,"d":"37,660.00 €"}}]
[null,1,{"$f":"IFERROR(IF(tblSales[[#This Row],[Κωδικός προϊόντος]]<>\"\",VLOOKUP(tblSales[Κωδικός προϊόντος],tblProducts[[Κωδικός προϊόντος]:[Όνομα]],2,FALSE),\"\"),\"Άγνωστος κωδικός προϊόντος\")","v":"Πουκάμισα"},"2012-01-01",88,{"v":54,"d":"54.00 €"},734,{"v":1427,"d":"1,427"},{"$f":"tblSales[[#This Row],[Πωληθείσες μονάδες (λιανική)]]+tblSales[[#This Row],[Πωληθείσες μονάδες (χονδρική)]]","v":{"v":2161,"d":"2,161"}},{"$f":"tblSales[[#This Row],[Πωληθείσες μονάδες (λιανική)]]*tblSales[[#This Row],[Τιμή μονάδας λιανικής]]+tblSales[[#This Row],[Πωληθείσες μονάδες (χονδρική)]]*tblSales[[#This Row],[Τιμή μονάδας χονδρικής*]]","v":{"v":141650,"d":"141,650.00 €"}}]
[null,2,{"$f":"IFERROR(IF(tblSales[[#This Row],[Κωδικός προϊόντος]]<>\"\",VLOOKUP(tblSales[Κωδικός προϊόντος],tblProducts[[Κωδικός προϊόντος]:[Όνομα]],2,FALSE),\"\"),\"Άγνωστος κωδικός προϊόντος\")","v":"Σανδάλια"},"2012-01-01",70,{"v":44,"d":"44.00 €"},744,{"v":1043,"d":"1,043"},{"$f":"tblSales[[#This Row],[Πωληθείσες μονάδες (λιανική)]]+tblSales[[#This Row],[Πωληθείσες μονάδες (χονδρική)]]","v":{"v":1787,"d":"1,787"}},{"$f":"tblSales[[#This Row],[Πωληθείσες μονάδες (λιανική)]]*tblSales[[#This Row],[Τιμή μονάδας λιανικής]]+tblSales[[#This Row],[Πωληθείσες μονάδες (χονδρική)]]*tblSales[[#This Row],[Τιμή μονάδας χονδρικής*]]","v":{"v":97972,"d":"97,972.00 €"}}]
[null,3,{"$f":"IFERROR(IF(tblSales[[#This Row],[Κωδικός προϊόντος]]<>\"\",VLOOKUP(tblSales[Κωδικός προϊόντος],tblProducts[[Κωδικός προϊόντος]:[Όνομα]],2,FALSE),\"\"),\"Άγνωστος κωδικός προϊόντος\")","v":"Ομπρέλες"},"2012-01-01",63,{"v":44,"d":"44.00 €"},681,{"v":1523,"d":"1,523"},{"$f":"tblSales[[#This Row],[Πωληθείσες μονάδες (λιανική)]]+tblSales[[#This Row],[Πωληθείσες μονάδες (χονδρική)]]","v":{"v":2204,"d":"2,204"}},{"$f":"tblSales[[#This Row],[Πωληθείσες μονάδες (λιανική)]]*tblSales[[#This Row],[Τιμή μονάδας λιανικής]]+tblSales[[#This Row],[Πωληθείσες μονάδες (χονδρική)]]*tblSales[[#This Row],[Τιμή μονάδας χονδρικής*]]","v":{"v":109915,"d":"109,915.00 €"}}]
[null,4,{"$f":"IFERROR(IF(tblSales[[#This Row],[Κωδικός προϊόντος]]<>\"\",VLOOKUP(tblSales[Κωδικός προϊόντος],tblProducts[[Κωδικός προϊόντος]:[Όνομα]],2,FALSE),\"\"),\"Άγνωστος κωδικός προϊόντος\")","v":"Μπουκάλια νερού"},"2012-01-01",35,{"v":27,"d":"27.00 €"},602,{"v":1822,"d":"1,822"},{"$f":"tblSales[[#This Row],[Πωληθείσες μονάδες (λιανική)]]+tblSales[[#This Row],[Πωληθείσες μονάδες (χονδρική)]]","v":{"v":2424,"d":"2,424"}},{"$f":"tblSales[[#This Row],[Πωληθείσες μονάδες (λιανική)]]*tblSales[[#This Row],[Τιμή μονάδας λιανικής]]+tblSales[[#This Row],[Πωληθείσες μονάδες (χονδρική)]]*tblSales[[#This Row],[Τιμή μονάδας χονδρικής*]]","v":{"v":70264,"d":"70,264.00 €"}}]
[null,1,{"$f":"IFERROR(IF(tblSales[[#This Row],[Κωδικός προϊόντος]]<>\"\",VLOOKUP(tblSales[Κωδικός προϊόντος],tblProducts[[Κωδικός προϊόντος]:[Όνομα]],2,FALSE),\"\"),\"Άγνωστος κωδικός προϊόντος\")","v":"Πουκάμισα"},"2012-02-01",55,{"v":44,"d":"44.00 €"},678,{"v":1515,"d":"1,515"},{"$f":"tblSales[[#This Row],[Πωληθείσες μονάδες (λιανική)]]+tblSales[[#This Row],[Πωληθείσες μονάδες (χονδρική)]]","v":{"v":2193,"d":"2,193"}},{"$f":"tblSales[[#This Row],[Πωληθείσες μονάδες (λιανική)]]*tblSales[[#This Row],[Τιμή μονάδας λιανικής]]+tblSales[[#This Row],[Πωληθείσες μονάδες (χονδρική)]]*tblSales[[#This Row],[Τιμή μονάδας χονδρικής*]]","v":{"v":103950,"d":"103,950.00 €"}}]
[null,2,{"$f":"IFERROR(IF(tblSales[[#This Row],[Κωδικός προϊόντος]]<>\"\",VLOOKUP(tblSales[Κωδικός προϊόντος],tblProducts[[Κωδικός προϊόντος]:[Όνομα]],2,FALSE),\"\"),\"Άγνωστος κωδικός προϊόντος\")","v":"Σανδάλια"},"2012-02-01",83,{"v":54,"d":"54.00 €"},753,{"v":1005,"d":"1,005"},{"$f":"tblSales[[#This Row],[Πωληθείσες μονάδες (λιανική)]]+tblSales[[#This Row],[Πωληθείσες μονάδες (χονδρική)]]","v":{"v":1758,"d":"1,758"}},{"$f":"tblSales[[#This Row],[Πωληθείσες μονάδες (λιανική)]]*tblSales[[#This Row],[Τιμή μονάδας λιανικής]]+tblSales[[#This Row],[Πωληθείσες μονάδες (χονδρική)]]*tblSales[[#This Row],[Τιμή μονάδας χονδρικής*]]","v":{"v":116769,"d":"116,769.00 €"}}]
[null,3,{"$f":"IFERROR(IF(tblSales[[#This Row],[Κωδικός προϊόντος]]<>\"\",VLOOKUP(tblSales[Κωδικός προϊόντος],tblProducts[[Κωδικός προϊόντος]:[Όνομα]],2,FALSE),\"\"),\"Άγνωστος κωδικός προϊόντος\")","v":"Ομπρέλες"},"2012-02-01",34,{"v":34,"d":"34.00 €"},986,{"v":1069,"d":"1,069"},{"$f":"tblSales[[#This Row],[Πωληθείσες μονάδες (λιανική)]]+tblSales[[#This Row],[Πωληθείσες μονάδες (χονδρική)]]","v":{"v":2055,"d":"2,055"}},{"$f":"tblSales[[#This Row],[Πωληθείσες μονάδες (λιανική)]]*tblSales[[#This Row],[Τιμή μονάδας λιανικής]]+tblSales[[#This Row],[Πωληθείσες μονάδες (χονδρική)]]*tblSales[[#This Row],[Τιμή μονάδας χονδρικής*]]","v":{"v":69870,"d":"69,870.00 €"}}]
[null,4,{"$f":"IFERROR(IF(tblSales[[#This Row],[Κωδικός προϊόντος]]<>\"\",VLOOKUP(tblSales[Κωδικός προϊόντος],tblProducts[[Κωδικός προϊόντος]:[Όνομα]],2,FALSE),\"\"),\"Άγνωστος κωδικός προϊόντος\")","v":"Μπουκάλια νερού"},"2012-02-01",35,{"v":25,"d":"25.00 €"},848,{"v":1211,"d":"1,211"},{"$f":"tblSales[[#This Row],[Πωληθείσες μονάδες (λιανική)]]+tblSales[[#This Row],[Πωληθείσες μονάδες (χονδρική)]]","v":{"v":2059,"d":"2,059"}},{"$f":"tblSales[[#This Row],[Πωληθείσες μονάδες (λιανική)]]*tblSales[[#This Row],[Τιμή μονάδας λιανικής]]+tblSales[[#This Row],[Πωληθείσες μονάδες (χονδρική)]]*tblSales[[#This Row],[Τιμή μονάδας χονδρικής*]]","v":{"v":59955,"d":"59,955.00 €"}}]
[null,5,{"$f":"IFERROR(IF(tblSales[[#This Row],[Κωδικός προϊόντος]]<>\"\",VLOOKUP(tblSales[Κωδικός προϊόντος],tblProducts[[Κωδικός προϊόντος]:[Όνομα]],2,FALSE),\"\"),\"Άγνωστος κωδικός προϊόντος\")","v":"Σορτσάκια"},"2012-02-01",41,{"v":38,"d":"38.00 €"},980,{"v":1330,"d":"1,330"},{"$f":"tblSales[[#This Row],[Πωληθείσες μονάδες (λιανική)]]+tblSales[[#This Row],[Πωληθείσες μονάδες (χονδρική)]]","v":{"v":2310,"d":"2,310"}},{"$f":"tblSales[[#This Row],[Πωληθείσες μονάδες (λιανική)]]*tblSales[[#This Row],[Τιμή μονάδας λιανικής]]+tblSales[[#This Row],[Πωληθείσες μονάδες (χονδρική)]]*tblSales[[#This Row],[Τιμή μονάδας χονδρικής*]]","v":{"v":90720,"d":"90,720.00 €"}}]
[null,1,{"$f":"IFERROR(IF(tblSales[[#This Row],[Κωδικός προϊόντος]]<>\"\",VLOOKUP(tblSales[Κωδικός προϊόντος],tblProducts[[Κωδικός προϊόντος]:[Όνομα]],2,FALSE),\"\"),\"Άγνωστος κωδικός προϊόντος\")","v":"Πουκάμισα"},"2012-02-29",27,{"v":18,"d":"18.00 €"},533,{"v":1936,"d":"1,936"},{"$f":"tblSales[[#This Row],[Πωληθείσες μονάδες (λιανική)]]+tblSales[[#This Row],[Πωληθείσες μονάδες (χονδρική)]]","v":{"v":2469,"d":"2,469"}},{"$f":"tblSales[[#This Row],[Πωληθείσες μονάδες (λιανική)]]*tblSales[[#This Row],[Τιμή μονάδας λιανικής]]+tblSales[[#This Row],[Πωληθείσες μονάδες (χονδρική)]]*tblSales[[#This Row],[Τιμή μονάδας χονδρικής*]]","v":{"v":49239,"d":"49,239.00 €"}}]
[null,2,{"$f":"IFERROR(IF(tblSales[[#This Row],[Κωδικός προϊόντος]]<>\"\",VLOOKUP(tblSales[Κωδικός προϊόντος],tblProducts[[Κωδικός προϊόντος]:[Όνομα]],2,FALSE),\"\"),\"Άγνωστος κωδικός προϊόντος\")","v":"Σανδάλια"},"2012-02-29",38,{"v":28,"d":"28.00 €"},952,{"v":1512,"d":"1,512"},{"$f":"tblSales[[#This Row],[Πωληθείσες μονάδες (λιανική)]]+tblSales[[#This Row],[Πωληθείσες μονάδες (χονδρική)]]","v":{"v":2464,"d":"2,464"}},{"$f":"tblSales[[#This Row],[Πωληθείσες μονάδες (λιανική)]]*tblSales[[#This Row],[Τιμή μονάδας λιανικής]]+tblSales[[#This Row],[Πωληθείσες μονάδες (χονδρική)]]*tblSales[[#This Row],[Τιμή μονάδας χονδρικής*]]","v":{"v":78512,"d":"78,512.00 €"}}]
[null,3,{"$f":"IFERROR(IF(tblSales[[#This Row],[Κωδικός προϊόντος]]<>\"\",VLOOKUP(tblSales[Κωδικός προϊόντος],tblProducts[[Κωδικός προϊόντος]:[Όνομα]],2,FALSE),\"\"),\"Άγνωστος κωδικός προϊόντος\")","v":"Ομπρέλες"},"2012-02-29",92,{"v":92,"d":"92.00 €"},956,{"v":1266,"d":"1,266"},{"$f":"tblSales[[#This Row],[Πωληθείσες μονάδες (λιανική)]]+tblSales[[#This Row],[Πωληθείσες μονάδες (χονδρική)]]","v":{"v":2222,"d":"2,222"}},{"$f":"tblSales[[#This Row],[Πωληθείσες μονάδες (λιανική)]]*tblSales[[#This Row],[Τιμή μονάδας λιανικής]]+tblSales[[#This Row],[Πωληθείσες μονάδες (χονδρική)]]*tblSales[[#This Row],[Τιμή μονάδας χονδρικής*]]","v":{"v":204424,"d":"204,424.00 €"}}]
[null,4,{"$f":"IFERROR(IF(tblSales[[#This Row],[Κωδικός προϊόντος]]<>\"\",VLOOKUP(tblSales[Κωδικός προϊόντος],tblProducts[[Κωδικός προϊόντος]:[Όνομα]],2,FALSE),\"\"),\"Άγνωστος κωδικός προϊόντος\")","v":"Μπουκάλια νερού"},"2012-02-29",43,{"v":36,"d":"36.00 €"},952,{"v":1390,"d":"1,390"},{"$f":"tblSales[[#This Row],[Πωληθείσες μονάδες (λιανική)]]+tblSales[[#This Row],[Πωληθείσες μονάδες (χονδρική)]]","v":{"v":2342,"d":"2,342"}},{"$f":"tblSales[[#This Row],[Πωληθείσες μονάδες (λιανική)]]*tblSales[[#This Row],[Τιμή μονάδας λιανικής]]+tblSales[[#This Row],[Πωληθείσες μονάδες (χονδρική)]]*tblSales[[#This Row],[Τιμή μονάδας χονδρικής*]]","v":{"v":90976,"d":"90,976.00 €"}}]
[null,5,{"$f":"IFERROR(IF(tblSales[[#This Row],[Κωδικός προϊόντος]]<>\"\",VLOOKUP(tblSales[Κωδικός προϊόντος],tblProducts[[Κωδικός προϊόντος]:[Όνομα]],2,FALSE),\"\"),\"Άγνωστος κωδικός προϊόντος\")","v":"Σορτσάκια"},"2012-02-29",98,{"v":73,"d":"73.00 €"},530,{"v":1452,"d":"1,452"},{"$f":"tblSales[[#This Row],[Πωληθείσες μονάδες (λιανική)]]+tblSales[[#This Row],[Πωληθείσες μονάδες (χονδρική)]]","v":{"v":1982,"d":"1,982"}},{"$f":"tblSales[[#This Row],[Πωληθείσες μονάδες (λιανική)]]*tblSales[[#This Row],[Τιμή μονάδας λιανικής]]+tblSales[[#This Row],[Πωληθείσες μονάδες (χονδρική)]]*tblSales[[#This Row],[Τιμή μονάδας χονδρικής*]]","v":{"v":157936,"d":"157,936.00 €"}}]
[null,1,{"$f":"IFERROR(IF(tblSales[[#This Row],[Κωδικός προϊόντος]]<>\"\",VLOOKUP(tblSales[Κωδικός προϊόντος],tblProducts[[Κωδικός προϊόντος]:[Όνομα]],2,FALSE),\"\"),\"Άγνωστος κωδικός προϊόντος\")","v":"Πουκάμισα"},"2012-03-31",38,{"v":28,"d":"28.00 €"},973,{"v":1415,"d":"1,415"},{"$f":"tblSales[[#This Row],[Πωληθείσες μονάδες (λιανική)]]+tblSales[[#This Row],[Πωληθείσες μονάδες (χονδρική)]]","v":{"v":2388,"d":"2,388"}},{"$f":"tblSales[[#This Row],[Πωληθείσες μονάδες (λιανική)]]*tblSales[[#This Row],[Τιμή μονάδας λιανικής]]+tblSales[[#This Row],[Πωληθείσες μονάδες (χονδρική)]]*tblSales[[#This Row],[Τιμή μονάδας χονδρικής*]]","v":{"v":76594,"d":"76,594.00 €"}}]
[null,2,{"$f":"IFERROR(IF(tblSales[[#This Row],[Κωδικός προϊόντος]]<>\"\",VLOOKUP(tblSales[Κωδικός προϊόντος],tblProducts[[Κωδικός προϊόντος]:[Όνομα]],2,FALSE),\"\"),\"Άγνωστος κωδικός προϊόντος\")","v":"Σανδάλια"},"2012-03-31",50,{"v":36,"d":"36.00 €"},672,{"v":1105,"d":"1,105"},{"$f":"tblSales[[#This Row],[Πωληθείσες μονάδες (λιανική)]]+tblSales[[#This Row],[Πωληθείσες μονάδες (χονδρική)]]","v":{"v":1777,"d":"1,777"}},{"$f":"tblSales[[#This Row],[Πωληθείσες μονάδες (λιανική)]]*tblSales[[#This Row],[Τιμή μονάδας λιανικής]]+tblSales[[#This Row],[Πωληθείσες μονάδες (χονδρική)]]*tblSales[[#This Row],[Τιμή μονάδας χονδρικής*]]","v":{"v":73380,"d":"73,380.00 €"}}]
[null,3,{"$f":"IFERROR(IF(tblSales[[#This Row],[Κωδικός προϊόντος]]<>\"\",VLOOKUP(tblSales[Κωδικός προϊόντος],tblProducts[[Κωδικός προϊόντος]:[Όνομα]],2,FALSE),\"\"),\"Άγνωστος κωδικός προϊόντος\")","v":"Ομπρέλες"},"2012-03-31",24,{"v":23,"d":"23.00 €"},769,{"v":1629,"d":"1,629"},{"$f":"tblSales[[#This Row],[Πωληθείσες μονάδες (λιανική)]]+tblSales[[#This Row],[Πωληθείσες μονάδες (χονδρική)]]","v":{"v":2398,"d":"2,398"}},{"$f":"tblSales[[#This Row],[Πωληθείσες μονάδες (λιανική)]]*tblSales[[#This Row],[Τιμή μονάδας λιανικής]]+tblSales[[#This Row],[Πωληθείσες μονάδες (χονδρική)]]*tblSales[[#This Row],[Τιμή μονάδας χονδρικής*]]","v":{"v":55923,"d":"55,923.00 €"}}]
[null,4,{"$f":"IFERROR(IF(tblSales[[#This Row],[Κωδικός προϊόντος]]<>\"\",VLOOKUP(tblSales[Κωδικός προϊόντος],tblProducts[[Κωδικός προϊόντος]:[Όνομα]],2,FALSE),\"\"),\"Άγνωστος κωδικός προϊόντος\")","v":"Μπουκάλια νερού"},"2012-03-31",72,{"v":57,"d":"57.00 €"},985,{"v":1848,"d":"1,848"},{"$f":"tblSales[[#This Row],[Πωληθείσες μονάδες (λιανική)]]+tblSales[[#This Row],[Πωληθείσες μονάδες (χονδρική)]]","v":{"v":2833,"d":"2,833"}},{"$f":"tblSales[[#This Row],[Πωληθείσες μονάδες (λιανική)]]*tblSales[[#This Row],[Τιμή μονάδας λιανικής]]+tblSales[[#This Row],[Πωληθείσες μονάδες (χονδρική)]]*tblSales[[#This Row],[Τιμή μονάδας χονδρικής*]]","v":{"v":176256,"d":"176,256.00 €"}}]
[null,5,{"$f":"IFERROR(IF(tblSales[[#This Row],[Κωδικός προϊόντος]]<>\"\",VLOOKUP(tblSales[Κωδικός προϊόντος],tblProducts[[Κωδικός προϊόντος]:[Όνομα]],2,FALSE),\"\"),\"Άγνωστος κωδικός προϊόντος\")","v":"Σορτσάκια"},"2012-03-31",85,{"v":43,"d":"43.00 €"},721,{"v":1426,"d":"1,426"},{"$f":"tblSales[[#This Row],[Πωληθείσες μονάδες (λιανική)]]+tblSales[[#This Row],[Πωληθείσες μονάδες (χονδρική)]]","v":{"v":2147,"d":"2,147"}},{"$f":"tblSales[[#This Row],[Πωληθείσες μονάδες (λιανική)]]*tblSales[[#This Row],[Τιμή μονάδας λιανικής]]+tblSales[[#This Row],[Πωληθείσες μονάδες (χονδρική)]]*tblSales[[#This Row],[Τιμή μονάδας χονδρικής*]]","v":{"v":122603,"d":"122,603.00 €"}}]
[null,1,{"$f":"IFERROR(IF(tblSales[[#This Row],[Κωδικός προϊόντος]]<>\"\",VLOOKUP(tblSales[Κωδικός προϊόντος],tblProducts[[Κωδικός προϊόντος]:[Όνομα]],2,FALSE),\"\"),\"Άγνωστος κωδικός προϊόντος\")","v":"Πουκάμισα"},"2012-04-30",91,{"v":65,"d":"65.00 €"},603,{"v":1226,"d":"1,226"},{"$f":"tblSales[[#This Row],[Πωληθείσες μονάδες (λιανική)]]+tblSales[[#This Row],[Πωληθείσες μονάδες (χονδρική)]]","v":{"v":1829,"d":"1,829"}},{"$f":"tblSales[[#This Row],[Πωληθείσες μονάδες (λιανική)]]*tblSales[[#This Row],[Τιμή μονάδας λιανικής]]+tblSales[[#This Row],[Πωληθείσες μονάδες (χονδρική)]]*tblSales[[#This Row],[Τιμή μονάδας χονδρικής*]]","v":{"v":134563,"d":"134,563.00 €"}}]
[null,2,{"$f":"IFERROR(IF(tblSales[[#This Row],[Κωδικός προϊόντος]]<>\"\",VLOOKUP(tblSales[Κωδικός προϊόντος],tblProducts[[Κωδικός προϊόντος]:[Όνομα]],2,FALSE),\"\"),\"Άγνωστος κωδικός προϊόντος\")","v":"Σανδάλια"},"2012-04-30",91,{"v":55,"d":"55.00 €"},892,{"v":1823,"d":"1,823"},{"$f":"tblSales[[#This Row],[Πωληθείσες μονάδες (λιανική)]]+tblSales[[#This Row],[Πωληθείσες μονάδες (χονδρική)]]","v":{"v":2715,"d":"2,715"}},{"$f":"tblSales[[#This Row],[Πωληθείσες μονάδες (λιανική)]]*tblSales[[#This Row],[Τιμή μονάδας λιανικής]]+tblSales[[#This Row],[Πωληθείσες μονάδες (χονδρική)]]*tblSales[[#This Row],[Τιμή μονάδας χονδρικής*]]","v":{"v":181437,"d":"181,437.00 €"}}]
[null,3,{"$f":"IFERROR(IF(tblSales[[#This Row],[Κωδικός προϊόντος]]<>\"\",VLOOKUP(tblSales[Κωδικός προϊόντος],tblProducts[[Κωδικός προϊόντος]:[Όνομα]],2,FALSE),\"\"),\"Άγνωστος κωδικός προϊόντος\")","v":"Ομπρέλες"},"2012-04-30",42,{"v":42,"d":"42.00 €"},611,{"v":1181,"d":"1,181"},{"$f":"tblSales[[#This Row],[Πωληθείσες μονάδες (λιανική)]]+tblSales[[#This Row],[Πωληθείσες μονάδες (χονδρική)]]","v":{"v":1792,"d":"1,792"}},{"$f":"tblSales[[#This Row],[Πωληθείσες μονάδες (λιανική)]]*tblSales[[#This Row],[Τιμή μονάδας λιανικής]]+tblSales[[#This Row],[Πωληθείσες μονάδες (χονδρική)]]*tblSales[[#This Row],[Τιμή μονάδας χονδρικής*]]","v":{"v":75264,"d":"75,264.00 €"}}]
[null,4,{"$f":"IFERROR(IF(tblSales[[#This Row],[Κωδικός προϊόντος]]<>\"\",VLOOKUP(tblSales[Κωδικός προϊόντος],tblProducts[[Κωδικός προϊόντος]:[Όνομα]],2,FALSE),\"\"),\"Άγνωστος κωδικός προϊόντος\")","v":"Μπουκάλια νερού"},"2012-04-30",85,{"v":43,"d":"43.00 €"},530,{"v":1039,"d":"1,039"},{"$f":"tblSales[[#This Row],[Πωληθείσες μονάδες (λιανική)]]+tblSales[[#This Row],[Πωληθείσες μονάδες (χονδρική)]]","v":{"v":1569,"d":"1,569"}},{"$f":"tblSales[[#This Row],[Πωληθείσες μονάδες (λιανική)]]*tblSales[[#This Row],[Τιμή μονάδας λιανικής]]+tblSales[[#This Row],[Πωληθείσες μονάδες (χονδρική)]]*tblSales[[#This Row],[Τιμή μονάδας χονδρικής*]]","v":{"v":89727,"d":"89,727.00 €"}}]
[null,5,{"$f":"IFERROR(IF(tblSales[[#This Row],[Κωδικός προϊόντος]]<>\"\",VLOOKUP(tblSales[Κωδικός προϊόντος],tblProducts[[Κωδικός προϊόντος]:[Όνομα]],2,FALSE),\"\"),\"Άγνωστος κωδικός προϊόντος\")","v":"Σορτσάκια"},"2012-04-30",82,{"v":71,"d":"71.00 €"},716,{"v":1249,"d":"1,249"},{"$f":"tblSales[[#This Row],[Πωληθείσες μονάδες (λιανική)]]+tblSales[[#This Row],[Πωληθείσες μονάδες (χονδρική)]]","v":{"v":1965,"d":"1,965"}},{"$f":"tblSales[[#This Row],[Πωληθείσες μονάδες (λιανική)]]*tblSales[[#This Row],[Τιμή μονάδας λιανικής]]+tblSales[[#This Row],[Πωληθείσες μονάδες (χονδρική)]]*tblSales[[#This Row],[Τιμή μονάδας χονδρικής*]]","v":{"v":147391,"d":"147,391.00 €"}}]
[null,1,{"$f":"IFERROR(IF(tblSales[[#This Row],[Κωδικός προϊόντος]]<>\"\",VLOOKUP(tblSales[Κωδικός προϊόντος],tblProducts[[Κωδικός προϊόντος]:[Όνομα]],2,FALSE),\"\"),\"Άγνωστος κωδικός προϊόντος\")","v":"Πουκάμισα"},"2012-05-14",34,{"v":31,"d":"31.00 €"},850,{"v":1548,"d":"1,548"},{"$f":"tblSales[[#This Row],[Πωληθείσες μονάδες (λιανική)]]+tblSales[[#This Row],[Πωληθείσες μονάδες (χονδρική)]]","v":{"v":2398,"d":"2,398"}},{"$f":"tblSales[[#This Row],[Πωληθείσες μονάδες (λιανική)]]*tblSales[[#This Row],[Τιμή μονάδας λιανικής]]+tblSales[[#This Row],[Πωληθείσες μονάδες (χονδρική)]]*tblSales[[#This Row],[Τιμή μονάδας χονδρικής*]]","v":{"v":76888,"d":"76,888.00 €"}}]
[null,2,{"$f":"IFERROR(IF(tblSales[[#This Row],[Κωδικός προϊόντος]]<>\"\",VLOOKUP(tblSales[Κωδικός προϊόντος],tblProducts[[Κωδικός προϊόντος]:[Όνομα]],2,FALSE),\"\"),\"Άγνωστος κωδικός προϊόντος\")","v":"Σανδάλια"},"2012-05-14",64,{"v":40,"d":"40.00 €"},876,{"v":1663,"d":"1,663"},{"$f":"tblSales[[#This Row],[Πωληθείσες μονάδες (λιανική)]]+tblSales[[#This Row],[Πωληθείσες μονάδες (χονδρική)]]","v":{"v":2539,"d":"2,539"}},{"$f":"tblSales[[#This Row],[Πωληθείσες μονάδες (λιανική)]]*tblSales[[#This Row],[Τιμή μονάδας λιανικής]]+tblSales[[#This Row],[Πωληθείσες μονάδες (χονδρική)]]*tblSales[[#This Row],[Τιμή μονάδας χονδρικής*]]","v":{"v":122584,"d":"122,584.00 €"}}]
[null,3,{"$f":"IFERROR(IF(tblSales[[#This Row],[Κωδικός προϊόντος]]<>\"\",VLOOKUP(tblSales[Κωδικός προϊόντος],tblProducts[[Κωδικός προϊόντος]:[Όνομα]],2,FALSE),\"\"),\"Άγνωστος κωδικός προϊόντος\")","v":"Ομπρέλες"},"2012-05-14",33,{"v":30,"d":"30.00 €"},881,{"v":1149,"d":"1,149"},{"$f":"tblSales[[#This Row],[Πωληθείσες μονάδες (λιανική)]]+tblSales[[#This Row],[Πωληθείσες μονάδες (χονδρική)]]","v":{"v":2030,"d":"2,030"}},{"$f":"tblSales[[#This Row],[Πωληθείσες μονάδες (λιανική)]]*tblSales[[#This Row],[Τιμή μονάδας λιανικής]]+tblSales[[#This Row],[Πωληθείσες μονάδες (χονδρική)]]*tblSales[[#This Row],[Τιμή μονάδας χονδρικής*]]","v":{"v":63543,"d":"63,543.00 €"}}]
[null,4,{"$f":"IFERROR(IF(tblSales[[#This Row],[Κωδικός προϊόντος]]<>\"\",VLOOKUP(tblSales[Κωδικός προϊόντος],tblProducts[[Κωδικός προϊόντος]:[Όνομα]],2,FALSE),\"\"),\"Άγνωστος κωδικός προϊόντος\")","v":"Μπουκάλια νερού"},"2012-05-14",29,{"v":27,"d":"27.00 €"},802,{"v":1548,"d":"1,548"},{"$f":"tblSales[[#This Row],[Πωληθείσες μονάδες (λιανική)]]+tblSales[[#This Row],[Πωληθείσες μονάδες (χονδρική)]]","v":{"v":2350,"d":"2,350"}},{"$f":"tblSales[[#This Row],[Πωληθείσες μονάδες (λιανική)]]*tblSales[[#This Row],[Τιμή μονάδας λιανικής]]+tblSales[[#This Row],[Πωληθείσες μονάδες (χονδρική)]]*tblSales[[#This Row],[Τιμή μονάδας χονδρικής*]]","v":{"v":65054,"d":"65,054.00 €"}}]
[null,5,{"$f":"IFERROR(IF(tblSales[[#This Row],[Κωδικός προϊόντος]]<>\"\",VLOOKUP(tblSales[Κωδικός προϊόντος],tblProducts[[Κωδικός προϊόντος]:[Όνομα]],2,FALSE),\"\"),\"Άγνωστος κωδικός προϊόντος\")","v":"Σορτσάκια"},"2013-12-11",24,{"v":15,"d":"15.00 €"},824,{"v":1994,"d":"1,994"},{"$f":"tblSales[[#This Row],[Πωληθείσες μονάδες (λιανική)]]+tblSales[[#This Row],[Πωληθείσες μονάδες (χονδρική)]]","v":{"v":2818,"d":"2,818"}},{"$f":"tblSales[[#This Row],[Πωληθείσες μονάδες (λιανική)]]*tblSales[[#This Row],[Τιμή μονάδας λιανικής]]+tblSales[[#This Row],[Πωληθείσες μονάδες (χονδρική)]]*tblSales[[#This Row],[Τιμή μονάδας χονδρικής*]]","v":{"v":49686,"d":"49,686.00 €"}}]

{"sheet":"Τιμοκατάλογος","index":2,"n_rows":18,"n_cols":6,"rows_kept":18,"merged":[[15,1,15,5]]}
[null,"Τιμοκατάλογος προϊόντων"]
[]
[null,"Ηλιοτεχνική Α.Ε."]
[null,"Λευκών 589"]
[null,"Αθήνα, 11111"]
[null,"Τηλέφωνο: (425) 555-0150"]
[null,"ΦΑΞ: (425) 555-0152"]
[null,"www.adventure-works.com",{"$nulls":3},"Τελευταία ενημέρωση: 15/8/2013"]
[]
[null,"Κωδικός προϊόντος","Όνομα","Περιγραφή","Τιμή μονάδας λιανικής","Τιμή μονάδας χονδρικής*"]
[null,1,"Πουκάμισα","Μείνετε δροσεροί όλο το καλοκαίρι με τα προπλυμένα πουκάμισά μας από 100% βαμβάκι",{"v":22,"d":"22.00 €"},{"v":15,"d":"15.00 €"}]
[null,2,"Σανδάλια","Φορέστε τα πολύ ανθεκτικά σανδάλια με ελαστική σόλα και περπατήστε στην καυτή άμμο με ευκολία.",{"v":10,"d":"10.00 €"},{"v":6,"d":"6.00 €"}]
[null,3,"Ομπρέλες","Καλυφθείτε από τον ήλιο κάτω από τις μεγάλες ομπρέλες που μπλοκάρουν το 96% της επιβλαβούς υπεριώδους ακτινοβολίας.",{"v":30,"d":"30.00 €"},{"v":20,"d":"20.00 €"}]
[null,4,"Μπουκάλια νερού","Ενυδατωθείτε με νερό στην ιδανική θερμοκρασία από τα μονωμένα μπουκάλια νερού της εταιρείας μας.",{"v":7,"d":"7.00 €"},{"v":5,"d":"5.00 €"}]
[null,5,"Σορτσάκια","Μπείτε κατευθείαν από το μπάνιο στο αυτοκίνητο, με τα νάιλον σορτσάκια που στεγνώνουν αμέσως.",{"v":15,"d":"15.00 €"},{"v":8,"d":"8.00 €"}]
[]
[{"$nulls":5},"Καλέστε μας αν δεν βρίσκετε κάτι στη λίστα."]
[{"$nulls":5},"*Οι τιμές χονδρικής ισχύουν για την αγορά 12 τεμαχίων και άνω."]

{"sheet":"Price Point Pivot","index":3,"n_rows":9,"n_cols":4,"rows_kept":9,"hidden":true,"merged":[[1,1,1,4]]}
[null,"Συγκεντρωτικός Πίνακας Επιπέδων Τιμών"]
[null,"Αυτό το φύλλο πρέπει να παραμείνει κρυφό. Τυχόν τροποποιήσεις στον παρακάτω Συγκεντρωτικό Πίνακα ενδέχεται να προκαλέσουν εσφαλμένα δεδομένα στην Αναφορά πωλήσεων προϊόντων. "]
[null,"Επιλεγμένο προϊόν:",{"$f":"IF(LEN(B5),B5,\"Κανένας\")","v":"Μπουκάλια νερού"}]
[null,"Όνομα προϊόντος","Τιμή μονάδας λιανικής","Άθροισμα από Σύνολο πωλήσεων (αρ.)"]
[null,"Μπουκάλια νερού",{"v":29,"d":"29 €"},2350]
[null,null,{"v":35,"d":"35 €"},4483]
[null,null,{"v":43,"d":"43 €"},2342]
[null,null,{"v":72,"d":"72 €"},2833]
[null,null,{"v":85,"d":"85 €"},1569]

{"sheet":"Sales Trend Pivot","index":4,"n_rows":9,"n_cols":3,"rows_kept":9,"hidden":true,"merged":[[1,1,1,6]]}
[null,"Συγκεντρωτικός Πίνακας Τάσης Πωλήσεων"]
[null,"Αυτό το φύλλο πρέπει να παραμείνει κρυφό. Τυχόν τροποποιήσεις στον παρακάτω Συγκεντρωτικό Πίνακα ενδέχεται να προκαλέσουν εσφαλμένα δεδομένα στην Αναφορά πωλήσεων προϊόντων. "]
[null,"Άθροισμα από Σύνολο πωλήσεων (αρ.)","Όνομα προϊόντος"]
[null,"Ημερομηνία τιμής","Μπουκάλια νερού"]
[null,"Ιαν",2424]
[null,"Φεβ",4401]
[null,"Μαρ",2833]
[null,"Απρ",1569]
[null,"Μαϊ",2350]